[Event "Titled Tuesday Blitz August 15 Late 2023"]
[White "Fiorito, Joaquin"]
[Black "Avila Rodriguez, Joshua Ad"]
[WhiteFideId "180173"]
[BlackFideId "5126444"]
[WhiteElo "2685"]
[BlackElo "2466"]
[Result "0-1"]
[Round "3"]
[TimeControl "180+1"]
[Date "2023.08.15"]
[WhiteClock "0:01:35"]
[BlackClock "0:00:12"]
[Board "69"]

1. d4 {[%clk 0:03:00]}  Nf6 {[%clk 0:02:59]} 2. c4 {[%clk 0:03:00]}  e6 {[%clk 0:02:58]} 3. Nc3 {[%clk 0:03:00]}  Bb4 {[%clk 0:02:57]} 4. f3 {[%clk 0:03:01]}  c5 {[%clk 0:02:56]} 5. d5 {[%clk 0:02:59]}  b5 {[%clk 0:02:44]} 6. e4 {[%clk 0:02:59]}  d6 {[%clk 0:02:45]} 7. Ne2 {[%clk 0:02:57]}  O-O {[%clk 0:02:34]} 8. Ng3 {[%clk 0:02:48]}  bxc4 {[%clk 0:02:25]} 9. Bxc4 {[%clk 0:02:49]}  exd5 {[%clk 0:02:25]} 10. Bxd5 {[%clk 0:02:50]}  Nxd5 {[%clk 0:02:25]} 11. Qxd5 {[%clk 0:02:50]}  Qb6 {[%clk 0:02:26]} 12. O-O {[%clk 0:02:47]}  Bb7 {[%clk 0:02:22]} 13. Qg5 {[%clk 0:02:41]}  h6 {[%clk 0:01:16]} 14. Qg4 {[%clk 0:02:39]}  Bc8 {[%clk 0:01:17]} 15. Nf5 {[%clk 0:02:30]}  Bxf5 {[%clk 0:01:16]} 16. exf5 {[%clk 0:02:30]}  Bxc3 {[%clk 0:01:15]} 17. bxc3 {[%clk 0:02:29]}  d5 {[%clk 0:01:16]} 18. Kh1 {[%clk 0:02:26]}  Nd7 {[%clk 0:01:13]} 19. Rd1 {[%clk 0:02:22]}  Qc6 {[%clk 0:00:46]} 20. Bf4 {[%clk 0:02:20]}  Nf6 {[%clk 0:00:44]} 21. Qh4 {[%clk 0:02:19]}  Rfd8 {[%clk 0:00:42]} 22. Re1 {[%clk 0:02:16]}  Re8 {[%clk 0:00:26]} 23. Be5 {[%clk 0:02:16]}  Nd7 {[%clk 0:00:26]} 24. Bf4 {[%clk 0:02:11]}  Qf6 {[%clk 0:00:23]} 25. Qg4 {[%clk 0:02:04]}  d4 {[%clk 0:00:21]} 26. cxd4 {[%clk 0:02:03]}  cxd4 {[%clk 0:00:21]} 27. Rad1 {[%clk 0:02:03]}  Rxe1+ {[%clk 0:00:20]} 28. Rxe1 {[%clk 0:02:03]}  Rd8 {[%clk 0:00:20]} 29. Bg3 {[%clk 0:02:03]}  d3 {[%clk 0:00:18]} 30. Bh4 {[%clk 0:02:02]}  Ne5 {[%clk 0:00:13]} 31. Bxf6 {[%clk 0:01:43]}  Nxg4 {[%clk 0:00:13]} 32. Bxd8 {[%clk 0:01:44]}  d2 {[%clk 0:00:10]} 33. Rf1 {[%clk 0:01:38]}  d1=Q {[%clk 0:00:06]} 34. Rxd1 {[%clk 0:01:38]}  Nf2+ {[%clk 0:00:06]} 35. Kg1 {[%clk 0:01:39]}  Nxd1 {[%clk 0:00:07]} 36. f6 {[%clk 0:01:34]}  g5 {[%clk 0:00:04]} 37. Be7 {[%clk 0:01:32]}  Nc3 {[%clk 0:00:04]} 38. a3 {[%clk 0:01:31]}  Nd5 {[%clk 0:00:04]} 39. Kf2 {[%clk 0:01:31]}  Kh7 {[%clk 0:00:03]} 40. Ke2 {[%clk 0:01:30]}  Kg6 {[%clk 0:00:04]} 41. Bd8 {[%clk 0:01:31]}  Nxf6 {[%clk 0:00:04]} 42. Bxf6 {[%clk 0:01:31]}  Kxf6 {[%clk 0:00:05]} 43. Kd3 {[%clk 0:01:32]}  Ke5 {[%clk 0:00:05]} 44. Kc4 {[%clk 0:01:33]}  Kf4 {[%clk 0:00:05]} 45. Kb5 {[%clk 0:01:30]}  Ke3 {[%clk 0:00:05]} 46. Ka6 {[%clk 0:01:30]}  Kf2 {[%clk 0:00:06]} 47. Kxa7 {[%clk 0:01:31]}  Kxg2 {[%clk 0:00:06]} 48. Kb7 {[%clk 0:01:31]}  f5 {[%clk 0:00:04]} 49. a4 {[%clk 0:01:30]}  g4 {[%clk 0:00:05]} 50. fxg4 {[%clk 0:01:31]}  f4 {[%clk 0:00:05]} 51. a5 {[%clk 0:01:28]}  f3 {[%clk 0:00:06]} 52. a6 {[%clk 0:01:28]}  f2 {[%clk 0:00:07]} 53. a7 {[%clk 0:01:29]}  f1=Q {[%clk 0:00:07]} 54. a8=Q {[%clk 0:01:29]}  Qf3+ {[%clk 0:00:07]} 55. Ka7 {[%clk 0:01:30]}  Qxa8+ {[%clk 0:00:08]} 56. Kxa8 {[%clk 0:01:30]}  Kxh2 {[%clk 0:00:09]} 57. Kb7 {[%clk 0:01:31]}  Kg3 {[%clk 0:00:09]} 58. Kc6 {[%clk 0:01:32]}  Kxg4 {[%clk 0:00:09]} 59. Kd5 {[%clk 0:01:33]}  h5 {[%clk 0:00:09]} 60. Ke4 {[%clk 0:01:33]}  h4 {[%clk 0:00:09]} 61. Ke3 {[%clk 0:01:34]}  Kg3 {[%clk 0:00:10]} 62. Ke2 {[%clk 0:01:35]}  Kg2 {[%clk 0:00:10]} 63. Ke3 {[%clk 0:01:36]}  h3 {[%clk 0:00:11]} 64. Kf4 {[%clk 0:01:35]}  h2 {[%clk 0:00:12]} 0-1


[Site "https://www.chess.com"]

[Event "Titled Tuesday Blitz August 15 Late 2023"]
[White "Baches Garcia, Guillermo"]
[Black "Goltsev, Dmitry"]
[WhiteFideId "2209764"]
[BlackFideId "24176710"]
[WhiteElo "2462"]
[BlackElo "2648"]
[Result "1/2-1/2"]
[Round "3"]
[TimeControl "180+1"]
[Date "2023.08.15"]
[WhiteClock "0:00:07"]
[BlackClock "0:00:05"]
[Board "72"]

1. e4 {[%clk 0:03:00]}  e5 {[%clk 0:03:00]} 2. Nf3 {[%clk 0:03:01]}  Nf6 {[%clk 0:03:00]} 3. Nc3 {[%clk 0:03:01]}  Nc6 {[%clk 0:02:58]} 4. d4 {[%clk 0:03:01]}  d6 {[%clk 0:02:49]} 5. h3 {[%clk 0:02:56]}  Be7 {[%clk 0:02:45]} 6. g4 {[%clk 0:02:56]}  h5 {[%clk 0:02:29]} 7. g5 {[%clk 0:02:52]}  Nh7 {[%clk 0:02:28]} 8. h4 {[%clk 0:02:35]}  Bg4 {[%clk 0:02:28]} 9. dxe5 {[%clk 0:02:26]}  dxe5 {[%clk 0:02:24]} 10. Be2 {[%clk 0:02:03]}  Qxd1+ {[%clk 0:02:21]} 11. Bxd1 {[%clk 0:02:03]}  Nb4 {[%clk 0:02:14]} 12. Nxe5 {[%clk 0:01:52]}  Bxd1 {[%clk 0:02:06]} 13. Kxd1 {[%clk 0:01:52]}  Rd8+ {[%clk 0:02:04]} 14. Nd3 {[%clk 0:01:41]}  Nxd3 {[%clk 0:02:02]} 15. cxd3 {[%clk 0:01:41]}  Rxd3+ {[%clk 0:02:03]} 16. Ke2 {[%clk 0:01:41]}  Rd7 {[%clk 0:01:58]} 17. Be3 {[%clk 0:01:38]}  Nf8 {[%clk 0:01:56]} 18. Rhd1 {[%clk 0:01:33]}  Ng6 {[%clk 0:01:55]} 19. Rxd7 {[%clk 0:01:28]}  Kxd7 {[%clk 0:01:56]} 20. Rd1+ {[%clk 0:01:28]}  Kc8 {[%clk 0:01:54]} 21. Rh1 {[%clk 0:01:26]}  Bd6 {[%clk 0:01:49]} 22. Nd5 {[%clk 0:01:23]}  c6 {[%clk 0:01:47]} 23. Nc3 {[%clk 0:01:20]}  Kc7 {[%clk 0:01:44]} 24. Bxa7 {[%clk 0:00:51]}  b6 {[%clk 0:00:51]} 25. Na4 {[%clk 0:00:50]}  Ra8 {[%clk 0:00:46]} 26. Bxb6+ {[%clk 0:00:46]}  Kb7 {[%clk 0:00:47]} 27. Bc5 {[%clk 0:00:38]}  Rxa4 {[%clk 0:00:22]} 28. Bxd6 {[%clk 0:00:38]}  Rxe4+ {[%clk 0:00:22]} 29. Kf3 {[%clk 0:00:37]}  Rd4 {[%clk 0:00:19]} 30. Bg3 {[%clk 0:00:34]}  Kb6 {[%clk 0:00:11]} 31. Re1 {[%clk 0:00:28]}  Nxh4+ {[%clk 0:00:08]} 32. Bxh4 {[%clk 0:00:25]}  Rxh4 {[%clk 0:00:08]} 33. Re7 {[%clk 0:00:25]}  Rg4 {[%clk 0:00:09]} 34. Rxf7 {[%clk 0:00:23]}  Rxg5 {[%clk 0:00:09]} 35. Rf8 {[%clk 0:00:23]}  g6 {[%clk 0:00:09]} 36. Kf4 {[%clk 0:00:21]}  Rg4+ {[%clk 0:00:09]} 37. Kf3 {[%clk 0:00:20]}  Rg5 {[%clk 0:00:09]} 38. Kf4 {[%clk 0:00:20]}  Rd5 {[%clk 0:00:09]} 39. Rf6 {[%clk 0:00:19]}  g5+ {[%clk 0:00:05]} 40. Ke3 {[%clk 0:00:18]}  Re5+ {[%clk 0:00:05]} 41. Kd3 {[%clk 0:00:18]}  h4 {[%clk 0:00:05]} 42. Rh6 {[%clk 0:00:16]}  Rd5+ {[%clk 0:00:05]} 43. Ke3 {[%clk 0:00:16]}  Re5+ {[%clk 0:00:06]} 44. Kd3 {[%clk 0:00:16]}  Kc5 {[%clk 0:00:06]} 45. b4+ {[%clk 0:00:13]}  Kb5 {[%clk 0:00:05]} 46. a4+ {[%clk 0:00:13]}  Kxb4 {[%clk 0:00:05]} 47. Rxc6 {[%clk 0:00:13]}  Kxa4 {[%clk 0:00:06]} 48. Kd4 {[%clk 0:00:13]}  Rf5 {[%clk 0:00:05]} 49. Ke3 {[%clk 0:00:12]}  Kb5 {[%clk 0:00:05]} 50. Rg6 {[%clk 0:00:12]}  Kc5 {[%clk 0:00:05]} 51. Ke4 {[%clk 0:00:12]}  Rf4+ {[%clk 0:00:05]} 52. Ke3 {[%clk 0:00:12]}  Rg4 {[%clk 0:00:04]} 53. Kf3 {[%clk 0:00:10]}  Rg1 {[%clk 0:00:04]} 54. Re6 {[%clk 0:00:10]}  Kd5 {[%clk 0:00:04]} 55. Rh6 {[%clk 0:00:09]}  h3 {[%clk 0:00:04]} 56. Rh7 {[%clk 0:00:07]}  g4+ {[%clk 0:00:04]} 57. Kf4 {[%clk 0:00:07]}  Rg2 {[%clk 0:00:03]} 58. Rh4 {[%clk 0:00:06]}  Kd4 {[%clk 0:00:02]} 59. Rh7 {[%clk 0:00:06]}  Kd3 {[%clk 0:00:03]} 60. f3 {[%clk 0:00:06]}  h2 {[%clk 0:00:01]} 61. fxg4 {[%clk 0:00:06]}  Ke2 {[%clk 0:00:02]} 62. g5 {[%clk 0:00:06]}  Kf2 {[%clk 0:00:02]} 63. Kf5 {[%clk 0:00:06]}  Kg3 {[%clk 0:00:02]} 64. g6 {[%clk 0:00:06]}  Rf2+ {[%clk 0:00:03]} 65. Ke6 {[%clk 0:00:06]}  Re2+ {[%clk 0:00:03]} 66. Kf7 {[%clk 0:00:06]}  Rf2+ {[%clk 0:00:03]} 67. Ke7 {[%clk 0:00:06]}  Ra2 {[%clk 0:00:03]} 68. Rxh2 {[%clk 0:00:06]}  Kxh2 {[%clk 0:00:03]} 69. g7 {[%clk 0:00:06]}  Ra7+ {[%clk 0:00:04]} 70. Kf8 {[%clk 0:00:07]}  Ra8+ {[%clk 0:00:04]} 71. Kf7 {[%clk 0:00:07]}  Kg3 {[%clk 0:00:04]} 72. g8=Q+ {[%clk 0:00:07]}  Rxg8 {[%clk 0:00:05]} 73. Kxg8 {[%clk 0:00:07]} 1/2-1/2


[Site "https://www.chess.com"]

[Event "Titled Tuesday Blitz August 15 Late 2023"]
[White "ExchangeAB"]
[Black "Sydoryka, Vladyslav"]
[BlackFideId "14145928"]
[WhiteElo "2446"]
[BlackElo "2614"]
[Result "0-1"]
[Round "3"]
[TimeControl "180+1"]
[Date "2023.08.15"]
[WhiteClock "0:00:02"]
[BlackClock "0:00:14"]
[Board "76"]

1. d4 {[%clk 0:03:00]}  Nf6 {[%clk 0:02:57]} 2. Nc3 {[%clk 0:03:01]}  d5 {[%clk 0:02:57]} 3. Bf4 {[%clk 0:03:01]}  c5 {[%clk 0:02:57]} 4. e3 {[%clk 0:03:01]}  cxd4 {[%clk 0:02:57]} 5. exd4 {[%clk 0:03:02]}  a6 {[%clk 0:02:56]} 6. Nf3 {[%clk 0:03:03]}  Bg4 {[%clk 0:02:57]} 7. h3 {[%clk 0:02:57]}  Bxf3 {[%clk 0:02:56]} 8. Qxf3 {[%clk 0:02:58]}  Nc6 {[%clk 0:02:57]} 9. O-O-O {[%clk 0:02:56]}  e6 {[%clk 0:02:57]} 10. g4 {[%clk 0:02:56]}  Bd6 {[%clk 0:02:55]} 11. Bg2 {[%clk 0:02:54]}  Bxf4+ {[%clk 0:02:54]} 12. Qxf4 {[%clk 0:02:55]}  Rc8 {[%clk 0:02:52]} 13. Rhe1 {[%clk 0:02:51]}  O-O {[%clk 0:02:48]} 14. g5 {[%clk 0:02:45]}  Nh5 {[%clk 0:02:45]} 15. Qh4 {[%clk 0:02:45]}  g6 {[%clk 0:02:44]} 16. Kb1 {[%clk 0:02:40]}  Ng7 {[%clk 0:02:38]} 17. Qf4 {[%clk 0:02:35]}  Nh5 {[%clk 0:02:36]} 18. Qe3 {[%clk 0:02:31]}  Qd6 {[%clk 0:02:34]} 19. Ne2 {[%clk 0:02:24]}  Ne7 {[%clk 0:02:29]} 20. c3 {[%clk 0:02:16]}  Nf5 {[%clk 0:02:29]} 21. Qd2 {[%clk 0:02:07]}  Qh2 {[%clk 0:02:23]} 22. Rg1 {[%clk 0:01:59]}  Nh4 {[%clk 0:02:18]} 23. Bh1 {[%clk 0:01:43]}  Qxh3 {[%clk 0:02:14]} 24. f4 {[%clk 0:01:36]}  Nf3 {[%clk 0:02:05]} 25. Bxf3 {[%clk 0:01:35]}  Qxf3 {[%clk 0:02:06]} 26. Rdf1 {[%clk 0:01:14]}  Qe4+ {[%clk 0:02:04]} 27. Ka1 {[%clk 0:01:13]}  b5 {[%clk 0:02:02]} 28. Ng3 {[%clk 0:01:10]}  Nxg3 {[%clk 0:02:01]} 29. Rxg3 {[%clk 0:01:11]}  Qf5 {[%clk 0:01:55]} 30. Qh2 {[%clk 0:01:07]}  f6 {[%clk 0:01:42]} 31. Rh1 {[%clk 0:01:02]}  Rc7 {[%clk 0:01:42]} 32. Re3 {[%clk 0:00:49]}  fxg5 {[%clk 0:01:38]} 33. fxg5 {[%clk 0:00:50]}  Rcf7 {[%clk 0:01:32]} 34. a3 {[%clk 0:00:46]}  Qxg5 {[%clk 0:01:28]} 35. Rxe6 {[%clk 0:00:43]}  Rf1+ {[%clk 0:01:28]} 36. Rxf1 {[%clk 0:00:35]}  Rxf1+ {[%clk 0:01:29]} 37. Ka2 {[%clk 0:00:36]}  Qd8 {[%clk 0:01:23]} 38. Qe5 {[%clk 0:00:34]}  Qh4 {[%clk 0:00:41]} 39. Re8+ {[%clk 0:00:30]}  Rf8 {[%clk 0:00:41]} 40. Qe6+ {[%clk 0:00:28]}  Kg7 {[%clk 0:00:41]} 41. Re7+ {[%clk 0:00:26]}  Kh6 {[%clk 0:00:40]} 42. Rd7 {[%clk 0:00:20]}  Rf5 {[%clk 0:00:30]} 43. Rxd5 {[%clk 0:00:18]}  Rf2 {[%clk 0:00:26]} 44. Qe3+ {[%clk 0:00:13]}  Qf4 {[%clk 0:00:25]} 45. Qh3+ {[%clk 0:00:11]}  Kg7 {[%clk 0:00:20]} 46. Rd7+ {[%clk 0:00:11]}  Kf6 {[%clk 0:00:21]} 47. Qxh7 {[%clk 0:00:10]}  Qd2 {[%clk 0:00:19]} 48. Rf7+ {[%clk 0:00:09]}  Kg5 {[%clk 0:00:20]} 49. Rxf2 {[%clk 0:00:08]}  Qxf2 {[%clk 0:00:21]} 50. Qe7+ {[%clk 0:00:08]}  Qf6 {[%clk 0:00:13]} 51. Qe3+ {[%clk 0:00:08]}  Qf4 {[%clk 0:00:13]} 52. Qg1+ {[%clk 0:00:08]}  Qg4 {[%clk 0:00:12]} 53. Qf1 {[%clk 0:00:08]}  Qe6+ {[%clk 0:00:12]} 54. Ka1 {[%clk 0:00:08]}  Qf5 {[%clk 0:00:12]} 55. Qg2+ {[%clk 0:00:08]}  Kf6 {[%clk 0:00:12]} 56. d5 {[%clk 0:00:08]}  g5 {[%clk 0:00:12]} 57. d6 {[%clk 0:00:08]}  Ke6 {[%clk 0:00:12]} 58. Qc6 {[%clk 0:00:07]}  Qf1+ {[%clk 0:00:12]} 59. Ka2 {[%clk 0:00:07]}  Qc4+ {[%clk 0:00:13]} 60. Qxc4+ {[%clk 0:00:06]}  bxc4 {[%clk 0:00:14]} 61. d7 {[%clk 0:00:02]}  Kxd7 {[%clk 0:00:14]} 0-1


[Site "https://www.chess.com"]

[Event "Titled Tuesday Blitz August 15 Late 2023"]
[White "Caspi, Israel"]
[Black "djathtaspogradec"]
[WhiteFideId "2807394"]
[WhiteElo "2610"]
[BlackElo "2442"]
[Result "0-1"]
[Round "3"]
[TimeControl "180+1"]
[Date "2023.08.15"]
[WhiteClock "0:00:03"]
[BlackClock "0:00:05"]
[Board "77"]

1. e4 {[%clk 0:03:00]}  e5 {[%clk 0:02:59]} 2. Nf3 {[%clk 0:03:00]}  Nc6 {[%clk 0:02:59]} 3. Bb5 {[%clk 0:03:01]}  a6 {[%clk 0:03:00]} 4. Ba4 {[%clk 0:03:01]}  Nf6 {[%clk 0:03:00]} 5. O-O {[%clk 0:03:01]}  Be7 {[%clk 0:03:01]} 6. Re1 {[%clk 0:03:02]}  b5 {[%clk 0:03:01]} 7. Bb3 {[%clk 0:03:02]}  O-O {[%clk 0:03:02]} 8. c3 {[%clk 0:03:00]}  d5 {[%clk 0:03:02]} 9. exd5 {[%clk 0:03:01]}  Nxd5 {[%clk 0:03:03]} 10. Nxe5 {[%clk 0:03:00]}  Nxe5 {[%clk 0:03:04]} 11. Rxe5 {[%clk 0:03:01]}  c6 {[%clk 0:03:05]} 12. d3 {[%clk 0:03:01]}  Bd6 {[%clk 0:03:04]} 13. Re1 {[%clk 0:03:01]}  Bf5 {[%clk 0:03:02]} 14. Qf3 {[%clk 0:03:01]}  Re8 {[%clk 0:03:00]} 15. Rxe8+ {[%clk 0:02:59]}  Qxe8 {[%clk 0:03:01]} 16. Nd2 {[%clk 0:03:00]}  Qe1+ {[%clk 0:02:57]} 17. Nf1 {[%clk 0:03:00]}  Bg6 {[%clk 0:02:58]} 18. Bd1 {[%clk 0:03:00]}  Re8 {[%clk 0:02:21]} 19. h4 {[%clk 0:02:56]}  h5 {[%clk 0:02:18]} 20. Bd2 {[%clk 0:02:55]}  Qe5 {[%clk 0:02:16]} 21. Bc2 {[%clk 0:02:46]}  Nf4 {[%clk 0:02:04]} 22. d4 {[%clk 0:02:32]}  Ne2+ {[%clk 0:02:01]} 23. Kh1 {[%clk 0:02:32]}  Qe7 {[%clk 0:01:56]} 24. Bxg6 {[%clk 0:02:26]}  Qxh4+ {[%clk 0:01:53]} 25. Qh3 {[%clk 0:02:26]}  Qxh3+ {[%clk 0:01:52]} 26. gxh3 {[%clk 0:02:27]}  fxg6 {[%clk 0:01:53]} 27. Re1 {[%clk 0:02:28]}  Kf7 {[%clk 0:01:49]} 28. h4 {[%clk 0:02:20]}  Nf4 {[%clk 0:01:41]} 29. Rxe8 {[%clk 0:02:16]}  Kxe8 {[%clk 0:01:42]} 30. Bxf4 {[%clk 0:02:05]}  Bxf4 {[%clk 0:01:41]} 31. Ne3 {[%clk 0:02:05]}  Ke7 {[%clk 0:01:33]} 32. Kg2 {[%clk 0:02:05]}  Ke6 {[%clk 0:01:33]} 33. Kf3 {[%clk 0:02:04]}  Bd6 {[%clk 0:01:27]} 34. b3 {[%clk 0:02:02]}  Be7 {[%clk 0:01:27]} 35. Ng2 {[%clk 0:02:00]}  g5 {[%clk 0:01:14]} 36. hxg5 {[%clk 0:01:57]}  Bxg5 {[%clk 0:01:15]} 37. Ne3 {[%clk 0:01:43]}  Bf6 {[%clk 0:00:53]} 38. Ng2 {[%clk 0:01:25]}  g5 {[%clk 0:00:39]} 39. Ne3 {[%clk 0:01:25]}  b4 {[%clk 0:00:35]} 40. d5+ {[%clk 0:01:08]}  cxd5 {[%clk 0:00:35]} 41. cxb4 {[%clk 0:01:09]}  Be7 {[%clk 0:00:32]} 42. a3 {[%clk 0:01:06]}  Ke5 {[%clk 0:00:30]} 43. Nc2 {[%clk 0:00:59]}  d4 {[%clk 0:00:28]} 44. Ne1 {[%clk 0:00:59]}  h4 {[%clk 0:00:23]} 45. Nd3+ {[%clk 0:00:52]}  Kf5 {[%clk 0:00:23]} 46. a4 {[%clk 0:00:52]}  g4+ {[%clk 0:00:23]} 47. Kg2 {[%clk 0:00:48]}  h3+ {[%clk 0:00:23]} 48. Kg3 {[%clk 0:00:31]}  Bd6+ {[%clk 0:00:23]} 49. f4 {[%clk 0:00:31]}  Ke4 {[%clk 0:00:08]} 50. Nf2+ {[%clk 0:00:29]}  Kf5 {[%clk 0:00:03]} 51. Nxg4 {[%clk 0:00:28]}  Bxf4+ {[%clk 0:00:03]} 52. Kf3 {[%clk 0:00:28]}  h2 {[%clk 0:00:03]} 53. Nf2 {[%clk 0:00:28]}  d3 {[%clk 0:00:03]} 54. b5 {[%clk 0:00:16]}  axb5 {[%clk 0:00:04]} 55. axb5 {[%clk 0:00:17]}  d2 {[%clk 0:00:04]} 56. Ke2 {[%clk 0:00:16]}  Ke6 {[%clk 0:00:04]} 57. b6 {[%clk 0:00:16]}  Kd7 {[%clk 0:00:04]} 58. Kf3 {[%clk 0:00:05]}  Kc6 {[%clk 0:00:03]} 59. Kxf4 {[%clk 0:00:06]}  d1=Q {[%clk 0:00:02]} 60. Nxd1 {[%clk 0:00:06]}  h1=Q {[%clk 0:00:02]} 61. Ne3 {[%clk 0:00:05]}  Kxb6 {[%clk 0:00:02]} 62. Nc4+ {[%clk 0:00:05]}  Kb5 {[%clk 0:00:02]} 63. Nd2 {[%clk 0:00:06]}  Kb4 {[%clk 0:00:03]} 64. Ke3 {[%clk 0:00:07]}  Qh3+ {[%clk 0:00:02]} 65. Kd4 {[%clk 0:00:07]}  Qh8+ {[%clk 0:00:01]} 66. Kd3 {[%clk 0:00:07]}  Qd8+ {[%clk 0:00:02]} 67. Kc2 {[%clk 0:00:07]}  Qe8 {[%clk 0:00:03]} 68. Nc4 {[%clk 0:00:07]}  Qf8 {[%clk 0:00:03]} 69. Nb2 {[%clk 0:00:07]}  Qg8 {[%clk 0:00:04]} 70. Nd3+ {[%clk 0:00:08]}  Ka3 {[%clk 0:00:04]} 71. b4 {[%clk 0:00:08]}  Qc4+ {[%clk 0:00:04]} 72. Kd2 {[%clk 0:00:08]}  Kb3 {[%clk 0:00:04]} 73. Ke3 {[%clk 0:00:08]}  Qe6+ {[%clk 0:00:04]} 74. Kd4 {[%clk 0:00:08]}  Ka3 {[%clk 0:00:03]} 75. Kc5 {[%clk 0:00:07]}  Qc8+ {[%clk 0:00:02]} 76. Kd5 {[%clk 0:00:07]}  Qd8+ {[%clk 0:00:03]} 77. Kc4 {[%clk 0:00:07]}  Ka4 {[%clk 0:00:04]} 78. Nc5+ {[%clk 0:00:07]}  Ka3 {[%clk 0:00:04]} 79. b5 {[%clk 0:00:07]}  Qc8 {[%clk 0:00:04]} 80. b6 {[%clk 0:00:07]}  Qc6 {[%clk 0:00:04]} 81. b7 {[%clk 0:00:07]}  Qc7 {[%clk 0:00:05]} 82. Kb5 {[%clk 0:00:08]}  Kb2 {[%clk 0:00:05]} 83. Ka6 {[%clk 0:00:07]}  Kc3 {[%clk 0:00:04]} 84. Na4+ {[%clk 0:00:02]}  Kb4 {[%clk 0:00:04]} 85. Nb6 {[%clk 0:00:02]}  Qb8 {[%clk 0:00:01]} 86. Nd7 {[%clk 0:00:01]}  Qd6+ {[%clk 0:00:02]} 87. Ka7 {[%clk 0:00:01]}  Qxd7 {[%clk 0:00:02]} 88. Ka8 {[%clk 0:00:01]}  Qd5 {[%clk 0:00:03]} 89. Ka7 {[%clk 0:00:01]}  Qa5+ {[%clk 0:00:03]} 90. Kb8 {[%clk 0:00:01]}  Kc5 {[%clk 0:00:04]} 91. Kc8 {[%clk 0:00:01]}  Qa6 {[%clk 0:00:04]} 92. Kc7 {[%clk 0:00:02]}  Qd6+ {[%clk 0:00:05]} 93. Kc8 {[%clk 0:00:02]}  Qc6+ {[%clk 0:00:05]} 94. Kb8 {[%clk 0:00:02]}  Kb6 {[%clk 0:00:05]} 95. Ka8 {[%clk 0:00:03]}  Qxb7# {[%clk 0:00:05]} 0-1


[Site "https://www.chess.com"]

[Event "Titled Tuesday Blitz August 15 Late 2023"]
[White "Sivakumar, Shaaketh"]
[Black "dr_tatiana"]
[WhiteFideId "30940176"]
[WhiteElo "2610"]
[BlackElo "2441"]
[Result "0-1"]
[Round "3"]
[TimeControl "180+1"]
[Date "2023.08.15"]
[WhiteClock "0:00:02"]
[BlackClock "0:00:04"]
[Board "78"]

1. e4 {[%clk 0:02:59]}  d5 {[%clk 0:02:55]} 2. exd5 {[%clk 0:02:58]}  Qxd5 {[%clk 0:02:55]} 3. Nf3 {[%clk 0:02:59]}  Bg4 {[%clk 0:02:47]} 4. Be2 {[%clk 0:02:58]}  Nc6 {[%clk 0:02:46]} 5. d4 {[%clk 0:02:58]}  O-O-O {[%clk 0:02:44]} 6. c4 {[%clk 0:02:56]}  Qf5 {[%clk 0:02:24]} 7. Be3 {[%clk 0:02:53]}  Bxf3 {[%clk 0:02:20]} 8. Bxf3 {[%clk 0:02:53]}  Nxd4 {[%clk 0:02:17]} 9. Bxd4 {[%clk 0:02:51]}  Qe6+ {[%clk 0:02:17]} 10. Be2 {[%clk 0:02:37]}  Qe4 {[%clk 0:02:17]} 11. Nc3 {[%clk 0:02:27]}  Qxd4 {[%clk 0:02:17]} 12. Qa4 {[%clk 0:02:27]}  Qc5 {[%clk 0:02:03]} 13. O-O {[%clk 0:02:16]}  e6 {[%clk 0:02:03]} 14. b4 {[%clk 0:02:16]}  Qxb4 {[%clk 0:01:49]} 15. Qxa7 {[%clk 0:02:15]}  Qxc3 {[%clk 0:01:45]} 16. Rab1 {[%clk 0:02:05]}  Bd6 {[%clk 0:01:33]} 17. Qxb7+ {[%clk 0:01:53]}  Kd7 {[%clk 0:01:32]} 18. Rfc1 {[%clk 0:01:52]}  Qe5 {[%clk 0:01:31]} 19. Bf3 {[%clk 0:01:41]}  Ke7 {[%clk 0:00:49]} 20. g3 {[%clk 0:01:37]}  Nf6 {[%clk 0:00:44]} 21. Rb5 {[%clk 0:01:31]}  Rb8 {[%clk 0:00:35]} 22. Qc6 {[%clk 0:00:57]}  Rxb5 {[%clk 0:00:35]} 23. cxb5 {[%clk 0:00:58]}  Rb8 {[%clk 0:00:30]} 24. a4 {[%clk 0:00:57]}  h5 {[%clk 0:00:29]} 25. Qc4 {[%clk 0:00:50]}  g6 {[%clk 0:00:24]} 26. Bc6 {[%clk 0:00:50]}  Kf8 {[%clk 0:00:21]} 27. a5 {[%clk 0:00:51]}  Nd5 {[%clk 0:00:14]} 28. a6 {[%clk 0:00:50]}  Nb6 {[%clk 0:00:13]} 29. a7 {[%clk 0:00:49]}  Rd8 {[%clk 0:00:13]} 30. Qh4 {[%clk 0:00:46]}  Be7 {[%clk 0:00:13]} 31. Qh3 {[%clk 0:00:40]}  Bc5 {[%clk 0:00:12]} 32. Qg2 {[%clk 0:00:40]}  Qd4 {[%clk 0:00:11]} 33. h4 {[%clk 0:00:37]}  Kg7 {[%clk 0:00:11]} 34. a8=Q {[%clk 0:00:36]}  Nxa8 {[%clk 0:00:11]} 35. Bxa8 {[%clk 0:00:35]}  Rxa8 {[%clk 0:00:11]} 36. Qxa8 {[%clk 0:00:34]}  Qxf2+ {[%clk 0:00:11]} 37. Kh1 {[%clk 0:00:35]}  Qxg3 {[%clk 0:00:11]} 38. Qe4 {[%clk 0:00:35]}  Bd6 {[%clk 0:00:10]} 39. Rc2 {[%clk 0:00:30]}  Qb3 {[%clk 0:00:08]} 40. Qc4 {[%clk 0:00:26]}  Qf3+ {[%clk 0:00:05]} 41. Kg1 {[%clk 0:00:26]}  Qg3+ {[%clk 0:00:04]} 42. Kf1 {[%clk 0:00:26]}  Qh3+ {[%clk 0:00:03]} 43. Ke1 {[%clk 0:00:24]}  Bg3+ {[%clk 0:00:03]} 44. Ke2 {[%clk 0:00:24]}  Qg2+ {[%clk 0:00:03]} 45. Kd3 {[%clk 0:00:23]}  Qf1+ {[%clk 0:00:02]} 46. Ke3 {[%clk 0:00:21]}  Qe1+ {[%clk 0:00:02]} 47. Kf3 {[%clk 0:00:21]}  Bxh4 {[%clk 0:00:02]} 48. Qxc7 {[%clk 0:00:15]}  Qh1+ {[%clk 0:00:03]} 49. Ke2 {[%clk 0:00:15]}  Bf6 {[%clk 0:00:04]} 50. Qc6 {[%clk 0:00:14]}  Qh2+ {[%clk 0:00:03]} 51. Kd3 {[%clk 0:00:15]}  Qg3+ {[%clk 0:00:03]} 52. Kc4 {[%clk 0:00:15]}  Qa3 {[%clk 0:00:03]} 53. b6 {[%clk 0:00:15]}  Qa6+ {[%clk 0:00:02]} 54. Kb3 {[%clk 0:00:15]}  Be7 {[%clk 0:00:01]} 55. b7 {[%clk 0:00:13]}  Qa3+ {[%clk 0:00:01]} 56. Kc4 {[%clk 0:00:13]}  Qb4+ {[%clk 0:00:02]} 57. Kd3 {[%clk 0:00:13]}  Qb3+ {[%clk 0:00:02]} 58. Qc3+ {[%clk 0:00:13]}  Qxc3+ {[%clk 0:00:02]} 59. Rxc3 {[%clk 0:00:13]}  Bd6 {[%clk 0:00:03]} 60. Rc8 {[%clk 0:00:13]}  h4 {[%clk 0:00:03]} 61. b8=Q {[%clk 0:00:12]}  Bxb8 {[%clk 0:00:04]} 62. Rxb8 {[%clk 0:00:13]}  g5 {[%clk 0:00:04]} 63. Ke3 {[%clk 0:00:14]}  f5 {[%clk 0:00:04]} 64. Kf3 {[%clk 0:00:12]}  Kf6 {[%clk 0:00:03]} 65. Rb5 {[%clk 0:00:12]}  g4+ {[%clk 0:00:02]} 66. Kf4 {[%clk 0:00:12]}  h3 {[%clk 0:00:02]} 67. Rb3 {[%clk 0:00:09]}  e5+ {[%clk 0:00:02]} 68. Kg3 {[%clk 0:00:10]}  Kg5 {[%clk 0:00:02]} 69. Rb8 {[%clk 0:00:10]}  f4+ {[%clk 0:00:02]} 70. Kf2 {[%clk 0:00:10]}  Kf5 {[%clk 0:00:03]} 71. Rf8+ {[%clk 0:00:09]}  Ke4 {[%clk 0:00:03]} 72. Rg8 {[%clk 0:00:10]}  g3+ {[%clk 0:00:03]} 73. Ke2 {[%clk 0:00:09]}  h2 {[%clk 0:00:03]} 74. Rh8 {[%clk 0:00:09]}  g2 {[%clk 0:00:04]} 75. Kf2 {[%clk 0:00:05]}  g1=Q+ {[%clk 0:00:04]} 76. Ke2 {[%clk 0:00:05]}  h1=Q {[%clk 0:00:04]} 77. Rh3 {[%clk 0:00:02]}  Qhg2# {[%clk 0:00:04]} 0-1


[Site "https://www.chess.com"]